bitfinex/quotes_BTCUSD_20250713
["timestamp","ask_amount","ask_price","bid_price","bid_amount"]
[1752432267294,1.15695183,118750.0,118740.0,0.82616]
[1752432268753,1.10649183,118750.0,118740.0,0.82616]
[1752432269945,1.10649183,118750.0,118740.0,0.84956]
[1752432270158,1.10649183,118750.0,118740.0,0.85481]
[1752432271965,0.39041016,118750.0,118740.0,0.85481]
[1752432272182,0.86647794,118750.0,118740.0,0.85481]
[1752432273661,1.10451183,118750.0,118740.0,0.85481]
[1752432294904,1.10451183,118750.0,118740.0,0.84889362]
[1752432297152,1.1737046,118750.0,118740.0,0.82024362]
[1752432297354,1.1737046,118750.0,118740.0,0.79714362]
[1752432297560,1.16507729,118750.0,118740.0,0.79714362]
[1752432297926,1.16759729,118750.0,118740.0,0.79714362]
[1752432298139,1.16507729,118750.0,118740.0,0.79714362]
[1752432302140,1.16507729,118750.0,118740.0,0.84502362]
[1752432302333,1.16507729,118750.0,118740.0,0.84710362]
[1752432303050,1.19084902,118750.0,118740.0,0.84710362]
[1752432303282,1.19957776,118750.0,118740.0,0.84710362]
[1752432305273,1.17380603,118750.0,118740.0,0.84710362]
[1752432312529,1.16507729,118750.0,118740.0,0.84710362]
[1752432313196,1.17372836,118750.0,118740.0,0.84710362]
[1752432313620,1.17372836,118750.0,118740.0,0.84184362]
[1752432315624,1.16507729,118750.0,118740.0,0.84184362]
[1752432317184,1.16507729,118750.0,118740.0,0.84502362]
[1752432318268,1.1736302,118750.0,118740.0,0.84502362]
[1752432324349,1.1736302,118750.0,118740.0,0.84710362]
[1752432327389,1.1716502,118750.0,118740.0,0.84710362]
[1752432327824,0.93361631,118750.0,118740.0,0.84710362]
[1752432333144,1.1716502,118750.0,118740.0,0.84710362]
[1752432337483,1.1464082,118750.0,118740.0,0.84710362]
[1752432354729,0.90837431,118750.0,118740.0,0.84710362]
[1752432357010,1.1464082,118750.0,118740.0,0.84710362]
[1752432362189,1.1483882,118750.0,118740.0,0.84710362]
[1752432362811,1.1483882,118750.0,118740.0,0.84392362]
[1752432363049,1.2013782,118750.0,118740.0,0.79666362]
[1752432363269,1.2474782,118750.0,118740.0,0.79666362]
[1752432363489,2.0470098,118750.0,118740.0,0.79666362]
[1752432363725,2.07186876,118750.0,118740.0,0.79666362]
[1752432363953,2.09023978,118750.0,118740.0,0.79666362]
[1752432364181,2.09023978,118750.0,118730.0,0.0205]
[1752432364417,0.77709467,118740.0,118730.0,0.0205]
[1752432364678,0.77907467,118740.0,118730.0,0.22226]
[1752432365112,0.77907467,118740.0,118720.0,0.0104]
[1752432365113,0.45111085,118730.0,118720.0,0.0104]
[1752432365344,0.45111085,118730.0,118710.0,0.0104]
[1752432365345,0.45111085,118720.0,118710.0,0.0104]
[1752432365571,1.98762514,118720.0,118710.0,0.33123262]
[1752432366062,1.98762514,118720.0,118710.0,0.20176]
[1752432366710,1.93715514,118720.0,118710.0,0.20176]
[1752432367135,1.93715514,118720.0,118710.0,0.32924]
[1752432371198,1.22305347,118720.0,118710.0,0.32924]
[1752432371408,1.19945347,118720.0,118710.0,0.32924]
[1752432371850,1.17695347,118720.0,118710.0,0.32924]
[1752432373015,0.81606778,118710.0,118700.0,1.05470506]
[1752432373236,0.81806778,118710.0,118700.0,1.05683506]
[1752432373469,0.81806778,118710.0,118700.0,1.05990506]
[1752432374278,1.05610167,118710.0,118700.0,1.1878845]
[1752432375408,1.05610167,118710.0,118700.0,1.3383845]
[1752432375636,1.05610167,118710.0,118700.0,1.3611845]
[1752432376135,1.05610167,118710.0,118700.0,1.3383845]
[1752432376347,1.05610167,118710.0,118700.0,1.3844845]
[1752432376855,1.54140167,118710.0,118700.0,1.3844845]
[1752432377721,1.54140167,118710.0,118700.0,1.3875545]
[1752432378602,1.54140167,118710.0,118700.0,1.3896845]
[1752432384893,1.54140167,118710.0,118700.0,1.3844845]
[1752432385126,1.54140167,118710.0,118700.0,1.3383845]
[1752432386208,1.59213,118710.0,118700.0,1.3383845]
[1752432386688,1.59213,118710.0,118700.0,1.3413845]
[1752432386877,1.59213,118710.0,118700.0,1.3855845]
[1752432387207,1.59187167,118710.0,118700.0,1.38532617]
[1752432387639,1.59187167,118710.0,118700.0,1.38232617]
[1752432387856,1.59187167,118710.0,118700.0,1.33812617]
[1752432391136,1.59187167,118710.0,118700.0,1.34112617]
[1752432391388,1.59187167,118710.0,118700.0,1.33812617]
[1752432391787,1.6773016,118710.0,118700.0,1.33812617]
[1752432392479,1.6773016,118710.0,118700.0,1.32971517]
[1752432392480,1.97015412,118710.0,118700.0,1.32971517]
[1752432392719,1.98852514,118710.0,118700.0,1.32971517]
[1752432392943,1.27442347,118710.0,118700.0,1.32130417]
[1752432393375,1.27442347,118710.0,118700.0,1.31289317]
[1752432393602,1.2925522,118710.0,118700.0,1.31289317]
[1752432393830,1.27442347,118710.0,118700.0,1.30448217]
[1752432394049,1.27442347,118710.0,118700.0,1.29607117]
[1752432394479,1.29255949,118710.0,118700.0,1.28766017]
[1752432394917,2.00666116,118710.0,118700.0,1.27924917]
[1752432395343,2.00666116,118710.0,118700.0,1.27083817]
[1752432395788,2.00666116,118710.0,118700.0,1.26242717]
[1752432396005,2.00666116,118710.0,118700.0,1.25401617]
[1752432396464,2.00666116,118710.0,118700.0,1.24560517]
[1752432396901,2.00666116,118710.0,118700.0,1.23719417]
[1752432397337,2.00666116,118710.0,118700.0,1.22878317]
[1752432397834,2.00666116,118710.0,118700.0,1.22037217]
[1752432398061,2.00666116,118710.0,118700.0,1.21196117]
[1752432398282,2.00678971,118710.0,118700.0,1.21196117]
[1752432398511,2.00678971,118710.0,118700.0,1.20354836]
[1752432398728,2.00678971,118710.0,118700.0,1.19938393]
[1752432398949,2.00678971,118710.0,118700.0,1.19097112]
[1752432399392,2.00666116,118710.0,118700.0,1.18242976]
[1752432399819,2.00666116,118710.0,118700.0,1.17401695]
[1752432400040,2.00666116,118710.0,118700.0,1.16560414]
[1752432400470,2.00666116,118710.0,118700.0,1.15719133]
[1752432400659,1.29255949,118710.0,118700.0,1.15719133]
[1752432400868,1.29255949,118710.0,118700.0,1.14877852]
[1752432401278,2.00666116,118710.0,118700.0,1.14036571]
[1752432401427,1.29255949,118710.0,118700.0,1.14036571]
[1752432401638,1.29255949,118710.0,118700.0,1.1319529]
[1752432402028,1.29255949,118710.0,118700.0,1.12354009]
[1752432402429,1.29255949,118710.0,118700.0,1.11512728]
[1752432402905,1.29255949,118710.0,118700.0,1.10671447]
[1752432403332,1.29255949,118710.0,118700.0,1.09830166]
[1752432403743,1.29255949,118710.0,118700.0,1.08988885]
[1752432403744,2.00666116,118710.0,118700.0,1.08988885]
[1752432406904,2.09209109,118710.0,118700.0,1.08988885]
[1752432407106,2.00666116,118710.0,118700.0,1.08988885]
[1752432407304,2.00666116,118710.0,118700.0,1.08147663]
[1752432407305,2.05666116,118710.0,118700.0,1.08147663]
[1752432407734,2.05666116,118710.0,118700.0,1.07306441]
[1752432408152,2.05666116,118710.0,118700.0,1.06465219]
[1752432408532,2.05666116,118710.0,118700.0,1.05623997]
[1752432408929,2.05666116,118710.0,118700.0,1.04782775]
[1752432409328,2.05666116,118710.0,118700.0,1.03941553]
[1752432409742,2.05666116,118710.0,118700.0,1.03100331]
[1752432414396,2.05665632,118710.0,118700.0,1.03100331]
[1752432415031,2.05765632,118710.0,118700.0,1.03100331]
[1752432416889,2.05765632,118710.0,118700.0,1.02259052]
[1752432417342,2.05765632,118710.0,118700.0,1.0141778]
[1752432417823,2.05765632,118710.0,118700.0,1.00576508]
[1752432418051,2.05765632,118710.0,118700.0,0.99735236]
[1752432418505,2.01065632,118710.0,118700.0,0.98893964]
[1752432418974,2.01065632,118710.0,118700.0,0.98052692]
[1752432419199,2.03435632,118710.0,118700.0,0.9721142]
[1752432419429,2.05635632,118710.0,118700.0,0.9721142]
[1752432419637,2.05635632,118710.0,118700.0,0.96370148]
[1752432419837,2.06035632,118710.0,118700.0,0.96370148]
[1752432420041,2.06035632,118710.0,118700.0,0.95528876]
[1752432420490,2.06035632,118710.0,118700.0,0.94687604]
[1752432420966,2.06035632,118710.0,118700.0,0.93846332]
[1752432421191,2.06035632,118710.0,118700.0,0.9300506]
[1752432421403,2.01365632,118710.0,118700.0,0.9300506]
[1752432421638,2.01114632,118710.0,118700.0,0.92163788]
[1752432428361,2.01114632,118710.0,118700.0,0.92173788]
[1752432430002,2.03381029,118710.0,118700.0,0.92173788]
[1752432430239,1.26770862,118710.0,118700.0,0.97410788]
[1752432430447,1.24704465,118710.0,118700.0,0.97410788]
[1752432433383,1.24704465,118710.0,118700.0,0.98410788]
[1752432433704,0.53294298,118710.0,118700.0,0.98410788]
[1752432433917,1.22891347,118710.0,118700.0,0.98410788]
[1752432434135,0.53294298,118710.0,118700.0,0.98410788]
[1752432434361,1.22691347,118710.0,118700.0,0.98410788]
[1752432434567,1.24504465,118710.0,118700.0,0.98410788]
[1752432434853,1.24704465,118710.0,118700.0,0.98410788]
[1752432438617,1.96114632,118710.0,118700.0,0.98410788]
[1752432440549,1.24704465,118710.0,118700.0,0.98410788]
[1752432444835,1.22891347,118710.0,118700.0,0.98410788]
[1752432445038,1.2470772,118710.0,118700.0,0.98410788]
[1752432458190,1.22891347,118710.0,118700.0,0.98410788]
[1752432458420,1.2470791,118710.0,118700.0,0.98410788]
[1752432459977,1.2500791,118710.0,118700.0,0.98410788]
[1752432463577,1.96418077,118710.0,118700.0,0.98410788]
[1752432466923,1.98688781,118710.0,118700.0,0.98410788]
[1752432467337,1.96418077,118710.0,118700.0,0.98410788]
[1752432467915,1.98688781,118710.0,118700.0,0.98410788]
[1752432468622,1.96418077,118710.0,118700.0,0.98410788]
[1752432469549,1.2500791,118710.0,118700.0,0.98410788]
[1752432475813,1.2500791,118710.0,118700.0,0.97569595]
[1752432476220,1.2500791,118710.0,118700.0,0.96728402]
[1752432476652,1.2500791,118710.0,118700.0,0.95887209]
[1752432476965,1.96418077,118710.0,118700.0,0.95887209]
[1752432477258,1.96418077,118710.0,118700.0,0.95839209]
[1752432484535,1.96418077,118710.0,118700.0,0.97189209]
[1752432487495,1.96218077,118710.0,118700.0,0.97189209]
[1752432487709,0.99167419,118710.0,118700.0,0.97189209]
[1752432487942,0.50123341,118710.0,118700.0,0.97189209]
[1752432488164,0.48306778,118710.0,118700.0,0.97189209]
[1752432488629,0.82306778,118710.0,118700.0,0.97189209]
[1752432488884,0.82006778,118710.0,118700.0,0.97189209]
[1752432489105,0.83460863,118710.0,118700.0,0.97189209]
[1752432489334,0.81806778,118710.0,118700.0,0.97189209]
[1752432489568,0.83260863,118710.0,118700.0,0.97189209]
[1752432490224,0.83460863,118710.0,118700.0,0.97189209]
[1752432493045,0.88507863,118710.0,118700.0,0.97189209]
[1752432495804,1.12311252,118710.0,118700.0,0.97189209]
[1752432496009,1.92462412,118710.0,118700.0,0.91952209]
[1752432496253,1.94299514,118710.0,118700.0,0.84979361]
[1752432496460,1.94299514,118710.0,118700.0,0.87941361]
[1752432496681,1.22691347,118710.0,118700.0,0.87941361]
[1752432499159,0.83042464,118710.0,118700.0,0.87941361]
[1752432500523,1.14803748,118710.0,118700.0,0.87941361]
[1752432513923,1.12966646,118710.0,118700.0,0.87941361]
[1752432514386,0.81205362,118710.0,118700.0,0.87941361]
[1752432517743,1.12966646,118710.0,118700.0,0.87941361]
[1752432519159,1.20909472,118710.0,118700.0,0.87941361]
[1752432522827,0.88544681,118710.0,118700.0,0.87941361]
[1752432523263,0.82043596,118710.0,118700.0,0.87941361]
[1752432523491,0.83497681,118710.0,118700.0,0.87941361]
[1752432527179,0.88544681,118710.0,118700.0,0.87941361]
[1752432532348,1.12366479,118710.0,118700.0,0.87941361]
[1752432541156,0.88544681,118710.0,118700.0,0.87941361]
[1752432541368,1.12366479,118710.0,118700.0,0.87941361]
[1752432541777,0.88544681,118710.0,118700.0,0.87941361]
[1752432544138,0.83497681,118710.0,118700.0,0.87941361]
[1752432544352,0.35854085,118710.0,118700.0,0.87941361]
[1752432544574,0.83497681,118710.0,118700.0,0.87941361]
[1752432545029,0.24221798,118710.0,118700.0,0.87941361]
[1752432545249,0.24221798,118710.0,118700.0,0.96484354]
[1752432545693,0.58221798,118710.0,118700.0,0.96484354]
[1752432545902,0.24221798,118710.0,118700.0,0.96484354]
[1752432548143,0.004,118710.0,118700.0,0.96484354]
[1752432548345,0.24221798,118710.0,118700.0,0.96484354]
[1752432550870,0.004,118710.0,118700.0,0.96484354]
[1752432551095,0.54764873,118710.0,118700.0,1.30181354]
[1752432568512,0.59811873,118710.0,118700.0,1.30181354]
[1752432568723,0.54764873,118710.0,118700.0,1.30181354]
[1752432575541,0.54764873,118710.0,118700.0,1.30171885]
[1752432584577,0.88764873,118710.0,118700.0,1.30171885]
[1752432591546,0.41121277,118710.0,118700.0,1.30171885]
[1752432591756,0.64943075,118710.0,118700.0,1.30171885]
[1752432592789,0.30943075,118710.0,118700.0,1.30171885]
[1752432594113,0.07121277,118710.0,118700.0,1.30171885]
[1752432594331,0.30943075,118710.0,118700.0,1.30171885]
[1752432594543,0.07121277,118710.0,118700.0,1.30171885]
[1752432594726,0.30943075,118710.0,118700.0,1.30171885]
[1752432602011,0.54764873,118710.0,118700.0,1.30171885]
[1752432604676,0.30943075,118710.0,118700.0,1.30171885]
[1752432605475,0.07121277,118710.0,118700.0,1.30171885]
[1752432605706,0.30943075,118710.0,118700.0,1.30171885]
[1752432606182,0.004,118710.0,118700.0,1.30171885]
[1752432611194,0.07121277,118710.0,118700.0,1.30171885]
[1752432615221,0.06921277,118710.0,118700.0,1.40663885]
[1752432615498,0.07021277,118710.0,118700.0,1.40663885]
[1752432615762,0.06921277,118710.0,118700.0,1.40663885]
[1752432616043,0.06921277,118710.0,118700.0,1.41163885]
[1752432619738,0.06921277,118710.0,118700.0,1.35671885]
[1752432620632,0.06921277,118710.0,118700.0,1.15491885]
[1752432625270,0.06921277,118710.0,118700.0,1.46155885]
[1752432629362,0.06921277,118710.0,118700.0,1.15491885]
[1752432632116,0.06080669,118710.0,118700.0,1.52221281]
[1752432632580,0.05240061,118710.0,118700.0,1.52221281]
[1752432633022,0.04399453,118710.0,118700.0,1.68069143]
[1752432633460,0.03558845,118710.0,118700.0,1.68069143]
[1752432633688,0.03558845,118710.0,118700.0,1.67569143]
[1752432633901,0.02718237,118710.0,118700.0,1.68469143]
[1752432634346,0.01877629,118710.0,118700.0,1.68469143]
[1752432634571,0.01037021,118710.0,118700.0,1.68469143]
[1752432635052,0.00196413,118710.0,118700.0,1.68469143]
[1752432635269,0.00196413,118710.0,118700.0,1.51551885]
[1752432635483,0.38440838,118730.0,118700.0,1.46611885]
[1752432635686,0.38440838,118730.0,118720.0,0.13382993]
[1752432635892,0.38440838,118730.0,118720.0,0.39056993]
[1752432636108,0.38440838,118730.0,118720.0,0.72749993]
[1752432636355,0.38440838,118730.0,118720.0,0.73043993]
[1752432636651,0.06721277,118730.0,118720.0,0.73043993]
[1752432636811,0.38440838,118730.0,118720.0,0.73043993]
[1752432637034,0.38440838,118730.0,118720.0,0.73443993]
[1752432639216,0.06721277,118730.0,118720.0,0.73443993]
[1752432640217,0.06721277,118750.0,118740.0,0.0497]
[1752432640429,0.06721277,118750.0,118740.0,0.39397537]
[1752432640654,0.06721277,118750.0,118740.0,0.39480993]
[1752432640851,0.06721277,118750.0,118740.0,0.73167993]
[1752432641605,0.06726259,118750.0,118740.0,0.73167993]
[1752432641814,0.06726259,118750.0,118740.0,0.73367993]
[1752432642922,0.06726259,118750.0,118740.0,0.74192847]
[1752432643568,0.06726259,118750.0,118740.0,0.73992847]
[1752432643775,0.06726259,118750.0,118740.0,0.74492847]
[1752432644029,0.06726259,118750.0,118740.0,1.10387554]
[1752432644879,0.06726259,118750.0,118740.0,0.78667993]
[1752432645328,0.06726259,118750.0,118740.0,1.11887026]
[1752432646820,0.06726259,118750.0,118740.0,1.12587026]
[1752432647974,0.05885922,118750.0,118740.0,1.12587026]
[1752432648390,0.05045585,118750.0,118740.0,1.12587026]
[1752432648708,0.04205248,118750.0,118740.0,1.12587026]
[1752432648944,0.04205248,118750.0,118740.0,1.02099026]
[1752432649160,0.04205248,118750.0,118740.0,1.31669026]
[1752432649393,0.04205248,118750.0,118740.0,1.02099026]
[1752432651152,0.04205248,118750.0,118740.0,0.81931026]
[1752432655206,0.04205248,118750.0,118740.0,1.12587026]
[1752432659187,0.04205248,118750.0,118740.0,1.02099026]
[1752432659444,4.982e-05,118750.0,118740.0,1.02099026]
[1752432660953,0.38440838,118770.0,118760.0,0.0476]
[1752432661169,0.38445826,118770.0,118760.0,0.38972993]
[1752432661371,0.38445826,118770.0,118760.0,0.72653993]
[1752432661580,0.06726265,118770.0,118760.0,0.72966993]
[1752432661803,0.38445826,118770.0,118760.0,0.72966993]
[1752432662286,0.38445826,118770.0,118760.0,0.73366993]
[1752432662722,0.06726265,118770.0,118760.0,0.73366993]
[1752432663170,0.06726265,118770.0,118760.0,0.73466993]
[1752432663654,0.05885929,118770.0,118760.0,0.73466993]
[1752432664101,0.05045593,118770.0,118760.0,0.73466993]
[1752432664319,0.04205257,118770.0,118760.0,0.73466993]
[1752432665335,0.04205257,118770.0,118760.0,1.04018993]
[1752432665548,0.04205257,118770.0,118760.0,1.04218993]
[1752432666626,0.35924818,118770.0,118760.0,1.04218993]
[1752432666840,0.35924818,118770.0,118760.0,1.03818993]
[1752432667579,0.35924818,118770.0,118760.0,1.04218993]
[1752432668677,0.35924818,118770.0,118760.0,0.93734993]
[1752432669119,0.04205257,118770.0,118760.0,0.93734993]
[1752432669353,0.35924818,118770.0,118760.0,0.93734993]
[1752432672182,0.04205257,118770.0,118760.0,0.93734993]
[1752432672371,0.35924818,118770.0,118760.0,0.93734993]
[1752432672593,0.35924818,118770.0,118760.0,0.73566993]
[1752432675295,0.35924818,118770.0,118760.0,1.04214993]
[1752432675983,4.988e-05,118770.0,118760.0,1.04214993]
[1752432676188,0.31724549,118770.0,118760.0,1.04214993]
[1752432678082,0.31922549,118770.0,118760.0,0.99454993]
[1752432678314,0.36832549,118770.0,118760.0,0.98935993]
[1752432678545,0.36832549,118770.0,118760.0,0.88451993]
[1752432678982,0.6855211,118770.0,118760.0,0.88451993]
[1752432679198,0.6880411,118770.0,118760.0,0.88451993]
[1752432680188,0.6880411,118770.0,118760.0,0.88051993]
[1752432680413,0.6880411,118770.0,118760.0,0.88351993]
[1752432681876,4.988e-05,118770.0,118760.0,0.93760993]
[1752432682087,4.988e-05,118770.0,118760.0,0.78596993]
[1752432682293,0.31719561,118780.0,118770.0,0.0502]
[1752432682517,0.31719561,118780.0,118770.0,0.73114483]
[1752432682725,0.31719561,118780.0,118770.0,0.73216993]
[1752432683489,0.13903812,118790.0,118770.0,0.73396993]
[1752432683721,0.13903812,118790.0,118780.0,0.39342993]
[1752432683930,0.31719561,118800.0,118790.0,0.0502]
[1752432684107,0.31719561,118800.0,118790.0,0.73108448]
[1752432684315,0.31719561,118800.0,118790.0,0.73221993]
[1752432685331,0.31719561,118800.0,118790.0,1.03869993]
[1752432686320,0.31719561,118800.0,118790.0,1.03969993]
[1752432689958,0.31719561,118800.0,118790.0,1.04069993]
[1752432693212,0.31719561,118800.0,118790.0,0.93585993]
[1752432694186,0.31719561,118800.0,118790.0,0.88565993]
[1752432694404,0.0492,118830.0,118800.0,0.0482]
[1752432694617,0.00014971,118820.0,118810.0,0.26621412]
[1752432694822,0.00014971,118820.0,118810.0,0.26616993]
[1752432695272,0.0002,118830.0,118820.0,0.0482]
[1752432695459,0.0002,118830.0,118820.0,0.26616993]
[1752432695670,0.0002,118830.0,118820.0,0.60280993]
[1752432695906,0.31739561,118830.0,118820.0,0.60280993]
[1752432696584,0.31739561,118830.0,118820.0,0.60680993]
[1752432696990,0.36837561,118830.0,118820.0,0.55330993]
[1752432697235,0.37089561,118830.0,118820.0,0.55330993]
[1752432697462,0.05118,118830.0,118820.0,0.55330993]
[1752432697699,0.31937561,118830.0,118820.0,0.55330993]
[1752432697914,0.31937561,118830.0,118820.0,0.54930993]
[1752432698229,0.31937561,118830.0,118820.0,0.55130993]
[1752432704017,0.00218,118830.0,118820.0,0.55130993]
[1752432704231,0.31937561,118830.0,118820.0,0.55130993]
[1752432706050,0.32190561,118830.0,118820.0,0.42406993]
[1752432706253,0.37120561,118830.0,118820.0,0.55130993]
[1752432708660,0.31937561,118830.0,118820.0,0.55130993]
[1752432708885,0.31739561,118830.0,118820.0,0.60550993]
[1752432709072,0.0002,118830.0,118820.0,0.60550993]
[1752432709391,0.31739561,118830.0,118820.0,0.60550993]
[1752432710044,0.26739561,118830.0,118820.0,0.60550993]
[1752432711129,0.30926525,118840.0,118830.0,0.0489]
[1752432711336,0.30926525,118840.0,118830.0,0.26374993]
[1752432711553,0.30926525,118840.0,118830.0,0.60360993]
[1752432713068,0.30926525,118840.0,118830.0,0.60460993]
[1752432719485,0.30926525,118840.0,118830.0,0.80616993]
[1752432720688,0.31124525,118840.0,118830.0,0.75196993]
[1752432720939,0.36004525,118840.0,118830.0,0.75196993]
[1752432721148,0.36256525,118840.0,118830.0,0.75196993]
[1752432721564,0.33654525,118840.0,118830.0,0.75196993]
[1752432721781,0.31124525,118840.0,118830.0,0.75196993]
[1752432721996,0.33654525,118840.0,118830.0,0.75196993]
[1752432724227,0.33654525,118840.0,118830.0,0.85676993]
[1752432725304,0.31124525,118840.0,118830.0,0.85676993]
[1752432727099,0.31377525,118840.0,118830.0,0.85676993]
[1752432727303,0.36057525,118840.0,118830.0,0.85676993]
[1752432727784,0.35804525,118840.0,118830.0,0.85676993]
[1752432728209,0.33444525,118840.0,118830.0,0.85676993]
[1752432729939,0.31124525,118840.0,118830.0,0.86202993]
[1752432730365,0.31124525,118840.0,118830.0,0.88712993]
[1752432731122,0.63541206,118840.0,118830.0,0.88712993]
[1752432731324,0.63541206,118840.0,118830.0,0.91082993]
[1752432733027,0.63541206,118840.0,118830.0,0.86202993]
[1752432733856,0.00198,118840.0,118830.0,0.86202993]
[1752432734077,0.63541206,118840.0,118830.0,0.86202993]
[1752432734545,0.63541206,118840.0,118830.0,0.88702993]
[1752432734974,0.63541206,118840.0,118830.0,0.85676993]
[1752432735685,0.68601206,118840.0,118830.0,0.72940993]
[1752432735900,0.68853206,118840.0,118830.0,0.85660993]
[1752432737425,0.68853206,118840.0,118830.0,0.85560993]
[1752432743855,1.02853206,118840.0,118830.0,0.85560993]
[1752432750723,1.04307291,118840.0,118830.0,0.85560993]
[1752432751171,1.06829291,118840.0,118830.0,0.85560993]
[1752432752068,1.06829291,118840.0,118830.0,0.77018]
[1752432762645,1.06829291,118840.0,118830.0,0.66538]
[1752432775560,1.04299291,118840.0,118830.0,0.66538]
[1752432775695,1.04047291,118840.0,118830.0,0.66538]
[1752432777470,1.01517291,118840.0,118830.0,0.66538]
[1752432781616,1.01517291,118840.0,118830.0,0.75581993]
[1752432781834,0.99865206,118840.0,118830.0,0.80421993]
[1752432782466,0.97343206,118840.0,118830.0,0.80421993]
[1752432782706,0.65671603,118840.0,118830.0,0.80421993]
[1752432786609,0.65671603,118840.0,118830.0,0.90901993]
[1752432787851,0.97343206,118840.0,118830.0,0.90901993]
[1752432796974,0.63343206,118840.0,118830.0,0.90901993]
[1752432803221,0.71270928,118840.0,118830.0,0.90901993]
[1752432812942,0.71270928,118840.0,118830.0,0.78181993]
[1752432813152,0.71468928,118840.0,118830.0,0.90897993]
[1752432815429,0.71468928,118840.0,118830.0,0.80417993]
[1752432818483,1.42739856,118840.0,118830.0,0.62360993]
[1752432818699,1.49185941,118840.0,118830.0,0.75076993]
[1752432818911,1.49185941,118840.0,118830.0,0.66534]
[1752432819139,1.51708141,118840.0,118830.0,0.66534]
[1752432836622,1.49368141,118840.0,118830.0,0.66534]
[1752432838238,0.75445213,118840.0,118830.0,0.6704]
[1752432838460,0.75445213,118840.0,118830.0,0.7186]
[1752432839089,0.75247213,118840.0,118830.0,0.7186]
[1752432840932,0.75445213,118840.0,118830.0,0.7186]
[1752432841723,0.75445213,118840.0,118830.0,0.6704]
[1752432843045,0.75445213,118840.0,118830.0,0.66534]
[1752432843258,1.46716141,118840.0,118830.0,0.66534]
[1752432843939,1.46968141,118840.0,118830.0,0.66534]
[1752432844158,1.51898141,118840.0,118830.0,0.66534]
[1752432844377,1.46968141,118840.0,118830.0,0.66534]
[1752432844623,1.85898141,118840.0,118830.0,0.66534]
[1752432846236,1.86098141,118840.0,118830.0,0.66534]
[1752432847023,1.38643028,118840.0,118830.0,0.66534]
[1752432847229,1.06947447,118840.0,118830.0,0.66534]
[1752432848970,1.38643028,118840.0,118830.0,0.66534]
[1752432850895,1.411906,118840.0,118830.0,0.66534]
[1752432851112,1.09495019,118840.0,118830.0,0.66534]
[1752432853306,1.411906,118840.0,118830.0,0.66534]
[1752432853525,1.49733593,118840.0,118830.0,0.66534]
[1752432855948,1.54782593,118840.0,118830.0,0.66534]
[1752432867196,2.26108712,118840.0,118830.0,0.66534]
[1752432868363,2.02348088,118840.0,118830.0,0.66534]
[1752432875263,2.02348088,118840.0,118830.0,0.65693765]
[1752432875610,2.02348088,118840.0,118830.0,0.6485353]
[1752432876038,1.99778088,118840.0,118830.0,0.64013295]
[1752432876480,0.40503085,118810.0,118790.0,0.05401]
[1752432876700,0.40503085,118810.0,118800.0,0.32876]
[1752432876928,0.49241078,118810.0,118790.0,0.051]
[1752432877145,0.56797478,118810.0,118780.0,0.05401]
[1752432877352,0.01454085,118790.0,118780.0,0.05401]
[1752432877566,0.01454085,118790.0,118780.0,0.05612]
[1752432877778,1.80629823,118790.0,118780.0,0.05612]
[1752432878449,1.09303704,118790.0,118780.0,0.18328]
[1752432878670,0.85528331,118790.0,118780.0,0.18342971]
[1752432879114,0.69683195,118790.0,118780.0,0.18342971]
[1752432879962,0.69783195,118790.0,118780.0,0.18342971]
[1752432880861,0.69783195,118790.0,118780.0,0.26885964]
[1752432881279,0.69783195,118790.0,118780.0,0.26985964]
[1752432885235,0.69783195,118790.0,118780.0,0.47149964]
[1752432903038,0.69783195,118790.0,118780.0,0.80823964]
[1752432906520,0.68087978,118790.0,118780.0,0.80823964]
[1752432908019,0.68087978,118790.0,118780.0,0.67180971]
[1752432908020,0.68285978,118790.0,118780.0,0.67180971]
[1752432908238,1.05036588,118790.0,118780.0,0.53952971]
[1752432908484,1.10328588,118790.0,118780.0,0.66672971]
[1752432914050,1.12852188,118790.0,118780.0,0.66672971]
[1752432915016,1.10382188,118790.0,118780.0,0.66672971]
[1752432915226,0.75854578,118790.0,118780.0,0.67208971]
[1752432915424,0.75854578,118790.0,118780.0,0.66997971]
[1752432915909,0.75854578,118790.0,118780.0,0.66672971]
[1752432919921,1.07560188,118790.0,118780.0,0.66672971]
[1752432920178,0.75854578,118790.0,118780.0,0.66672971]
[1752432920677,1.07560188,118790.0,118780.0,0.66672971]
[1752432921073,1.10292188,118790.0,118780.0,0.66672971]
[1752432921330,1.12752188,118790.0,118780.0,0.66672971]
[1752432922694,1.07812188,118790.0,118780.0,0.66672971]
[1752432923333,1.07560188,118790.0,118780.0,0.66672971]
[1752432923592,0.75854578,118790.0,118780.0,0.66672971]
[1752432926891,0.75854578,118790.0,118780.0,0.72365971]
[1752432931246,0.75656578,118790.0,118780.0,0.72365971]
[1752432932109,0.70611578,118790.0,118780.0,0.72365971]
[1752432932371,0.68087978,118790.0,118780.0,0.72365971]
[1752432932810,0.66633893,118790.0,118780.0,0.80908964]
[1752432933451,0.32633893,118790.0,118780.0,0.80908964]
[1752432933904,0.66633893,118790.0,118780.0,0.80908964]
[1752432936524,0.34928283,118790.0,118780.0,0.80908964]
[1752432936748,0.66633893,118790.0,118780.0,0.80908964]
[1752432943610,0.66633893,118790.0,118780.0,0.91392964]
[1752432959486,0.66831893,118790.0,118780.0,0.91392964]
[1752432962928,0.66831893,118790.0,118780.0,0.80908964]
[1752432966651,0.66633893,118790.0,118780.0,0.80908964]
[1752432972268,0.34928283,118790.0,118780.0,0.80908964]
[1752432972465,0.66633893,118790.0,118780.0,0.80908964]
[1752432975143,0.82482927,118790.0,118780.0,0.80908964]
[1752432979222,0.48471773,118790.0,118780.0,0.80908964]
[1752432989363,0.23866168,118790.0,118780.0,0.80908964]
[1752432989834,0.00088846,118790.0,118780.0,0.80908964]
[1752432990527,0.23866168,118790.0,118780.0,0.80808964]
[1752432990926,0.23866168,118790.0,118780.0,0.80908964]
[1752432991170,0.31687609,118800.0,118780.0,0.75728964]
[1752432991398,0.31687609,118800.0,118790.0,0.39081448]
[1752432991642,0.31687609,118800.0,118790.0,0.39371799]
[1752432991884,0.31687609,118800.0,118790.0,0.73044799]
[1752432994912,0.06721277,118820.0,118800.0,0.0516]
[1752432995155,0.06721277,118820.0,118810.0,0.39641993]
[1752432995353,0.38408886,118820.0,118810.0,0.39641993]
[1752432995554,0.38408886,118820.0,118810.0,0.73308993]
[1752432996973,0.38708886,118820.0,118810.0,0.73308993]
[1752432997226,0.31987609,118820.0,118810.0,0.73308993]
[1752432999996,0.31687609,118820.0,118810.0,0.73308993]
[1752433001220,0.65687609,118820.0,118810.0,0.73308993]
[1752433007759,0.65687609,118820.0,118810.0,0.93468993]
[1752433011033,1.05296185,118820.0,118810.0,0.93468993]
[1752433021373,1.78244455,118820.0,118810.0,0.62369993]
[1752433021591,1.83046455,118820.0,118810.0,0.75077993]
[1752433021826,1.83046455,118820.0,118810.0,0.66535]
[1752433022972,1.83246455,118820.0,118810.0,0.66535]
[1752433023209,1.04060509,118820.0,118810.0,0.66535]
[1752433025512,0.99258509,118820.0,118810.0,0.66535]
[1752433025932,0.99258509,118820.0,118810.0,0.66545]